bitfinex/quotes_ETHUSD_20240729
["timestamp","ask_amount","ask_price","bid_price","bid_amount"]
[1722215894013,9.21674573,3286.0,3285.4,3.43976263]
[1722215894217,4.88057,3286.0,3285.4,3.43976263]
[1722215894725,1.90133762,3286.0,3285.4,3.43976263]
[1722215894933,1.90133762,3286.1,3285.4,3.43976263]
[1722215895184,4.33590762,3286.0,3285.4,3.43976263]
[1722215895321,6.77047762,3286.0,3285.4,3.43976263]
[1722215895526,4.86914,3286.0,3285.4,3.43976263]
[1722215895770,2.43457,3286.0,3285.4,3.43976263]
[1722215896538,2.43457,3286.0,3285.4,5.87476263]
[1722215896739,4.33559326,3286.1,3285.5,2.43493]
[1722215896955,2.43457,3286.0,3285.4,3.43976263]
[1722215897267,4.33551298,3286.0,3285.4,3.43976263]
[1722215897681,6.77008298,3286.0,3285.4,3.43976263]
[1722215897891,4.86914,3286.0,3285.4,3.43976263]
[1722215898559,6.76965004,3286.0,3285.4,3.43976263]
[1722215898880,4.86914,3286.0,3285.4,3.43976263]
[1722215899386,6.7696195,3286.0,3285.4,3.43976263]
[1722215899584,4.86914,3286.0,3285.4,3.43976263]
[1722215899789,7.55641081,3286.0,3285.4,3.43976263]
[1722215900001,5.656054,3286.0,3285.4,3.43976263]
[1722215900351,5.656054,3286.0,3285.3,3.43976263]
[1722215900552,5.12166515,3286.0,3285.3,5.87484263]
[1722215900785,0.05309271,3286.0,3285.5,2.43492]
[1722215901476,2.48766271,3286.0,3285.9,0.10788012]
[1722215902595,2.48766271,3286.0,3285.9,0.00533007]
[1722215903088,4.92223271,3286.0,3285.9,0.00533007]
[1722215903588,6.8223241,3286.0,3285.9,0.00533007]
[1722215903892,8.90446512,3286.0,3285.9,0.00533007]
[1722215904052,11.60485139,3286.0,3285.9,0.00533007]
[1722215904451,16.14952468,3286.0,3285.9,0.00533007]
[1722215904686,17.23323806,3286.0,3285.9,0.00533007]
[1722215905666,19.85180151,3286.0,3285.9,0.00533007]
[1722215905997,17.23323806,3286.0,3285.9,0.00533007]
[1722215906155,19.84901704,3286.0,3285.9,0.00533007]
[1722215907476,17.23323806,3286.0,3285.9,0.00533007]
[1722215909609,14.79866806,3286.0,3285.9,0.00533007]
[1722215910191,17.01020851,3286.0,3285.9,0.00533007]
[1722215910392,17.01020816,3286.0,3285.9,0.00533007]
[1722215910823,14.79866806,3286.0,3285.9,0.00533007]
[1722215911330,9.48619806,3286.0,3285.9,0.00533007]
[1722215911493,11.38174772,3286.0,3285.9,0.00533007]
[1722215911818,11.38190482,3286.0,3285.9,0.00533007]
[1722215912127,9.48619806,3286.0,3285.9,0.00533007]
[1722215912506,11.38188047,3286.0,3285.9,0.00533007]
[1722215912714,9.48619806,3286.0,3285.9,0.00533007]
[1722215913897,6.06939565,3286.0,3285.9,0.00533007]
[1722215914118,0.31890898,3286.0,3285.9,0.00533007]
[1722215914320,0.31890898,3286.0,3285.9,4.81597007]
[1722215914598,0.31890898,3286.0,3285.9,4.91528435]
[1722215914837,0.31890898,3286.0,3285.9,7.34992435]
[1722215915022,0.31890898,3286.0,3285.9,8.08491679]
[1722215916446,0.31890898,3286.0,3285.9,5.65027679]
[1722215917006,0.31890898,3286.0,3285.9,3.21563679]
[1722215917544,0.31890898,3286.0,3285.9,5.65027679]
[1722215920052,0.31890898,3286.0,3285.9,0.10464435]
[1722215922578,4.33426426,3286.0,3285.9,0.10464435]
[1722215923075,2.75347898,3286.0,3285.9,0.00533007]
[1722215923279,6.76883426,3286.0,3285.9,0.00533007]
[1722215924180,4.33426426,3286.0,3285.9,0.00533007]
[1722215924386,1.89969426,3286.0,3285.9,0.00533007]
[1722215924569,0.31890898,3286.0,3285.9,0.00533007]
[1722215925256,0.31890898,3286.0,3285.9,0.10442978]
[1722215926559,2.75347898,3286.0,3285.9,0.10442978]
[1722215927751,5.18804898,3286.0,3285.9,0.10442978]
[1722215928087,5.864934,3286.0,3285.9,0.10442978]
[1722215928295,7.41546543,3286.0,3285.9,0.10442978]
[1722215928456,7.4154669,3286.0,3285.9,0.00533007]
[1722215928652,9.8500369,3286.0,3285.9,0.00533007]
[1722215928852,15.59844541,3286.0,3285.9,0.00533007]
[1722215929168,20.08301541,3286.0,3285.9,7e-08]
[1722215929697,22.69785327,3286.0,3285.9,7e-08]
[1722215930616,22.51758541,3286.0,3285.9,7e-08]
[1722215931279,25.65530875,3286.0,3285.9,7e-08]
[1722215932017,22.51758541,3286.0,3285.9,7e-08]
[1722215933018,25.65510889,3286.0,3285.9,7e-08]
[1722215933375,22.51758541,3286.0,3285.9,7e-08]
[1722215935345,2.43568,3284.5,3284.4,6.78]
[1722215935546,2.43568,3284.5,3284.0,2.3125]
[1722215935547,2.43576,3284.4,3284.0,2.3125]
[1722215935742,1.5505329,3284.3,3284.0,2.3125]
[1722215936055,1.5505329,3284.2,3284.0,2.3125]
[1722215936260,1.5505329,3284.1,3284.0,2.3125]
[1722215937112,1.5505329,3284.2,3284.0,2.3125]
[1722215937316,1.5505329,3284.1,3284.0,2.3125]
[1722215937555,1.5505329,3284.2,3284.0,2.3125]
[1722215938039,1.5505329,3284.1,3284.0,2.3125]
[1722215938757,2.7546289,3284.4,3284.0,2.3125]
[1722215938758,1.5505329,3284.3,3284.0,2.3125]
[1722215938934,1.5505329,3284.2,3284.0,2.3125]
[1722215939139,1.5505329,3284.1,3284.0,2.3125]
[1722215939819,1.5505329,3284.1,3283.6,2.567]
[1722215940026,1.5505329,3284.0,3283.3,2.2785]
[1722215940257,3.9866729,3283.9,3283.3,2.2785]
[1722215940578,1.5505329,3283.8,3283.4,0.728208]
[1722215941567,1.55147708,3283.7,3283.4,0.728208]
[1722215941771,1.55146893,3283.6,3283.2,2.567]
[1722215942073,1.55146893,3283.6,3283.0,2.2716]
[1722215942074,1.5515278,3283.5,3283.0,2.2716]
[1722215942219,1.5515278,3283.5,3283.0,4.70836]
[1722215942427,1.5515278,3283.5,3283.0,5.679577]
[1722215942653,1.5515278,3283.4,3283.1,2.4367]
[1722215942835,1.55148597,3283.3,3283.1,2.4367]
[1722215943041,2.43623,3283.8,3283.1,2.4367]
[1722215943382,3.9877608,3283.7,3283.1,2.4367]
[1722215943537,1.5514908,3283.6,3283.1,2.4367]
[1722215943870,1.5514908,3283.6,3283.0,2.2716]
[1722215944177,2.43656,3283.4,3282.7,5.004]
[1722215944318,1.5514908,3283.3,3282.8,2.43693]
[1722215944753,1.5514908,3283.3,3282.9,2.43686]
[1722215944998,1.5514908,3283.2,3282.9,2.43686]
[1722215945256,2.43644,3283.5,3282.7,5.975286]
[1722215945467,2.43665,3283.2,3282.7,2.567]
[1722215945719,2.43673,3283.1,3282.5,2.4371]
[1722215945920,2.43682,3283.0,3282.4,2.43723]
[1722215946492,2.43753,3282.0,3281.4,2.4738]
[1722215946825,2.43753,3282.0,3281.9,0.25131742]
[1722215947056,2.43753,3282.0,3281.9,0.1486537]
[1722215947227,4.87506,3282.0,3281.9,0.1486537]
[1722215947443,2.43753,3282.0,3281.9,0.1486537]
[1722215947972,5.43698,3282.8,3281.9,0.1486537]
[1722215948280,2.43739,3282.2,3281.9,0.1486537]
[1722215948437,2.43751,3282.1,3282.0,0.10259259]
[1722215948788,7.31253,3282.1,3282.0,0.10259259]
[1722215949176,7.31253,3282.1,3281.9,0.1486537]
[1722215949177,7.31259,3282.0,3281.9,0.1486537]
[1722215949640,7.86259,3282.0,3281.9,0.1486537]
[1722215949837,8.648849,3282.0,3281.9,0.1486537]
[1722215950081,5.661319,3282.0,3281.9,0.1486537]
[1722215950291,2.43753,3282.0,3281.9,0.1486537]
[1722215950595,4.87506,3282.0,3281.9,0.1486537]
[1722215950939,2.43753,3282.0,3281.9,0.1486537]
[1722215951339,2.75647982,3282.0,3281.9,0.1486537]
[1722215951840,5.19400982,3282.0,3281.9,0.1486537]
[1722215952061,5.7134108,3282.0,3281.9,0.1486537]
[1722215952366,0.8383508,3282.0,3281.9,0.1486537]
[1722215952585,0.31894982,3282.0,3281.9,0.1486537]
[1722215952781,5.19400982,3282.0,3281.9,0.2520568]
[1722215953094,5.19400982,3282.0,3281.9,0.1486537]
[1722215953293,10.96489556,3282.0,3281.9,0.1486537]
[1722215954146,8.52736556,3282.0,3281.9,0.1486537]
[1722215954394,3.83443556,3282.0,3281.9,0.1486537]
[1722215954571,0.31894982,3282.0,3281.9,0.1486537]
[1722215954775,2.75647982,3282.0,3281.9,0.1486537]
[1722215954945,2.75647982,3282.0,3281.9,0.25208125]
[1722215955488,0.31894982,3282.0,3281.9,0.25208125]
[1722215955861,0.31894982,3282.0,3281.9,0.1486537]
[1722215956198,5.4696508,3282.0,3281.9,0.1486537]
[1722215956402,3.0321208,3282.0,3281.9,0.1486537]
[1722215956781,5.4696508,3282.0,3281.9,0.1486537]
[1722215957448,3.0321208,3282.0,3281.9,0.1486537]
[1722215957741,8.78473204,3282.0,3281.9,0.1486537]
[1722215957992,5.78473204,3282.0,3281.9,0.1486537]
[1722215958153,8.4571808,3282.0,3281.9,0.1486537]
[1722215958360,11.77180282,3282.0,3281.9,0.1486537]
[1722215960464,3.07110184,3282.0,3281.9,0.1486537]
[1722215960697,2.75647982,3282.0,3281.9,0.1486537]
[1722215960993,0.31894982,3282.0,3281.9,0.1486537]
[1722215961289,5.19400982,3282.0,3281.9,0.25216439]
[1722215961495,5.7134108,3282.0,3281.9,0.1486537]
[1722215961844,10.5606408,3282.0,3281.9,0.1486537]
[1722215963251,5.7134108,3282.0,3281.9,0.1486537]
[1722215963452,2.75647982,3282.0,3281.9,0.1486537]
[1722215963675,0.31894982,3282.0,3281.9,0.1486537]
[1722215964097,0.31894982,3282.0,3281.9,0.2521432]
[1722215965065,0.31894982,3282.0,3281.9,2.6897532]
[1722215965484,0.31894982,3282.0,3281.9,0.2521432]
[1722215966205,2.75647982,3282.0,3281.9,0.2521432]
[1722215966765,0.31894982,3282.0,3281.9,0.2521432]
[1722215966957,2.75647982,3282.0,3281.9,0.2521432]
[1722215967160,5.7134048,3282.0,3281.9,0.2521432]
[1722215967584,5.7134048,3282.0,3281.9,0.1486537]
[1722215968197,3.2758748,3282.0,3281.9,0.1486537]
[1722215968399,0.31894982,3282.0,3281.9,0.1486537]
[1722215968585,0.31894982,3282.0,3281.9,0.25208453]
[1722215968779,0.31894982,3282.0,3281.9,0.1486537]
[1722215969095,2.75647982,3282.0,3281.9,0.25208616]
[1722215970496,0.31894982,3282.0,3281.9,0.25208616]
[1722215971382,0.31894982,3282.0,3281.9,2.5862637]
[1722215971614,0.31894982,3282.0,3281.9,0.25208616]
[1722215971817,0.31894982,3282.0,3281.9,2.68969616]
[1722215972817,0.31894982,3282.0,3281.9,0.25208616]
[1722215972996,0.31894982,3282.0,3281.9,2.68969616]
[1722215973497,0.31894982,3282.0,3281.9,0.25208616]
[1722215973878,0.31894982,3282.0,3281.9,2.68969616]
[1722215974318,0.31894982,3282.0,3281.9,5.12730616]
[1722215975066,0.31489565,3282.8,3282.5,2.43711]
[1722215975182,2.43657,3283.3,3282.7,2.43701]
[1722215975380,2.43671,3283.2,3282.5,2.43711]
[1722215975596,0.31889094,3282.7,3282.6,2.43709]
[1722215975919,2.43658,3283.3,3282.6,2.43709]
[1722215976219,0.243644,3283.5,3282.6,2.43709]
[1722215976220,2.43665,3283.2,3282.6,2.43709]
[1722215976420,0.243644,3283.5,3282.6,2.43709]
[1722215976421,0.31888588,3282.7,3282.6,2.43709]
[1722215976722,0.243644,3283.5,3282.9,2.43686]
[1722215977016,0.31888383,3283.1,3282.9,2.43686]
[1722215977223,0.31888383,3283.1,3283.0,0.10252966]
[1722215977779,0.31888383,3283.1,3283.0,2.53931966]
[1722215978020,0.31888383,3283.1,3283.0,7.54310966]
[1722215978194,0.31888383,3283.1,3283.0,8.29742063]
[1722215978397,2.2874,3284.4,3283.0,8.29742063]
[1722215978398,2.43591,3284.2,3283.5,2.43639]
[1722215978605,1.55138061,3284.1,3283.6,2.43634]
[1722215978846,1.55138061,3284.1,3283.7,2.43627]
[1722215979044,0.31887567,3284.1,3283.9,2.43607]
[1722215979244,0.31887567,3284.1,3283.8,2.567]
[1722215979245,0.31887567,3284.1,3283.8,2.66896111]
[1722215979406,0.31887567,3284.1,3284.0,0.10181902]
[1722215979610,2.4358,3284.4,3283.9,0.10189006]
[1722215979810,2.4358,3284.4,3283.8,2.567]
[1722215979811,2.4359,3284.3,3284.0,0.10181902]
[1722215980011,0.487148,3284.4,3284.0,0.10181902]
[1722215980212,2.75439256,3284.7,3283.6,4.82155]
[1722215980213,2.43592,3284.2,3283.6,4.82155]
[1722215980455,2.43592,3284.2,3284.1,0.10145806]
[1722215980612,2.43592,3284.2,3283.4,2.567]
[1722215980923,2.43602,3284.1,3283.4,2.43648]
[1722215981123,2.43593,3284.2,3283.5,0.10188437]
[1722215981348,2.43626,3283.8,3283.2,6.78]
[1722215981647,2.43626,3283.8,3283.6,0.10181331]
[1722215981814,2.43626,3283.8,3283.2,6.78]
[1722215982009,2.43628,3283.7,3283.2,6.78]
[1722215982542,2.43625,3283.8,3283.2,6.78]
[1722215982850,1.55153497,3283.7,3283.2,6.78]
[1722215983050,1.55153497,3283.7,3283.2,9.21659]
[1722215983219,0.243625,3283.8,3283.2,6.78]
[1722215983567,2.43643,3283.5,3283.2,6.78]
[1722215983845,2.43643,3283.5,3282.9,10.208]
[1722215984073,2.43627,3283.7,3282.9,12.64486]
[1722215984527,1.55159697,3283.6,3282.9,12.64486]
[1722215985119,1.55159697,3283.6,3283.1,2.43666]
[1722215985314,2.43614,3283.9,3283.1,2.43666]
[1722215985520,1.79521716,3283.8,3282.9,10.208]
[1722215985713,1.55160316,3283.7,3283.4,2.43644]
[1722215985917,2.4359,3284.2,3282.9,10.208]
[1722215985918,2.4359,3284.2,3283.5,2.43637]
[1722215986143,1.55139409,3284.1,3283.5,2.43637]
[1722215986341,1.55139409,3284.1,3283.2,9.21662]
[1722215986342,1.55139409,3284.1,3283.2,6.78]
[1722215986544,4.00737582,3285.1,3283.9,2.43608]
[1722215986545,2.75444256,3284.7,3283.9,2.43608]
[1722215986755,1.55123393,3284.6,3284.0,2.43604]
[1722215987120,1.55123393,3284.6,3283.4,3.428]
[1722215987427,1.55123393,3284.6,3284.0,2.43603]
[1722215987635,2.43576,3284.4,3283.7,2.43621]
[1722215987818,3.98702253,3284.3,3283.7,2.43621]
[1722215988021,2.43576,3284.4,3283.6,2.43635]
[1722215988262,1.55122744,3284.3,3283.8,2.43615]
[1722215988835,1.55122744,3284.3,3283.9,2.43612]
[1722215989036,0.31886256,3284.7,3284.1,2.43593]
[1722215989237,1.55112351,3284.6,3284.2,2.4359]
[1722215989457,1.55112351,3284.6,3284.3,2.43583]
[1722215989657,1.55112351,3284.6,3284.4,2.43573]
[1722215989818,0.31886256,3284.7,3284.4,2.43573]
[1722215990581,0.31886256,3284.7,3284.6,2.4356]
[1722215990919,0.31886256,3284.7,3284.6,4.8712]
[1722215991662,0.31886256,3284.7,3284.4,5.86373]
[1722215991863,0.31886256,3284.7,3284.1,2.43597]
[1722215992070,0.31886256,3284.7,3284.5,0.10079297]
[1722215992234,0.27543626,3284.6,3283.9,2.4361]
[1722215992436,0.27543626,3284.6,3284.0,2.43604]
[1722215992661,0.27543626,3284.6,3283.8,6.78]
[1722215992969,0.31886256,3284.7,3284.2,2.43585]
[1722215993575,0.31886256,3284.7,3284.3,2.43582]
[1722215993718,0.31886256,3284.7,3283.9,3.428]
[1722215993924,0.31886256,3284.7,3284.1,2.43592]
[1722215994236,0.31886256,3284.7,3284.2,2.43584]
[1722215994626,0.31886256,3284.7,3284.3,2.4358]
[1722215994826,0.31886256,3284.7,3284.3,0.487172]
[1722215995026,0.31886256,3284.7,3284.5,2.43563]
[1722215995324,0.31886256,3284.7,3284.6,2.4356]
[1722215995524,0.31886256,3284.7,3284.3,2.43577]
[1722215995962,0.31886256,3284.7,3284.4,2.43575]
[1722215996530,0.31886256,3284.7,3284.3,2.43579]
[1722215996843,0.31886256,3284.7,3284.0,2.43602]
[1722215997046,0.31886256,3284.7,3283.8,9.21618]
[1722215997047,0.59429282,3284.7,3283.8,6.78]
[1722215997241,2.4356,3284.6,3283.9,2.43608]
[1722215997474,2.4356,3284.6,3284.0,2.43603]
[1722215997645,2.43568,3284.5,3283.8,9.21615]
[1722215997983,2.43563,3284.6,3283.8,6.78]
[1722215998134,2.43573,3284.5,3283.8,9.21619]
[1722215998331,2.43577,3284.4,3283.8,9.21619]
[1722215998532,0.31886256,3284.7,3284.0,2.43604]
[1722215998774,2.43532,3285.0,3284.0,2.43599]
[1722215999076,0.31891842,3284.6,3284.3,2.43582]
[1722215999631,0.31891842,3284.6,3284.4,2.43575]
[1722215999829,0.31891842,3284.6,3284.5,2.43568]
[1722216000096,0.31891842,3284.6,3284.5,4.87136]
[1722216000372,0.31891842,3284.6,3284.5,2.43568]
[1722216000741,0.31891842,3284.6,3284.0,2.4988]
[1722216001077,0.31891842,3284.6,3284.4,2.43574]
[1722216001286,0.31891842,3284.6,3284.5,4.87136]
[1722216001780,2.43487,3285.6,3284.7,2.43548]
[1722216001929,2.43487,3285.6,3285.0,2.43526]
[1722216002674,2.43499,3285.5,3284.8,2.43545]
[1722216002884,2.43509,3285.3,3284.7,2.4355]
[1722216003169,2.43516,3285.2,3284.6,2.43557]
[1722216003374,2.43503,3285.4,3284.7,2.43553]
[1722216003547,2.678533,3285.4,3284.7,2.43553]
[1722216003752,2.43514,3285.3,3284.6,2.43557]
[1722216003958,0.243503,3285.4,3284.6,2.43557]
[1722216004164,2.43489,3285.6,3284.9,2.43536]
[1722216004369,2.43484,3285.7,3285.0,2.4353]
[1722216004567,2.43488,3285.6,3284.9,2.43536]
[1722216004752,2.43488,3285.6,3285.0,2.43531]
[1722216005079,2.43488,3285.6,3285.1,2.43518]
[1722216005080,0.487858,3285.6,3285.1,2.43518]
[1722216005735,2.4437,3285.8,3285.3,2.43508]
[1722216006073,2.43465,3285.9,3285.3,2.43508]
[1722216006933,2.43465,3285.9,3285.4,0.09970005]
[1722216007334,2.43477,3285.8,3285.4,0.09970005]
[1722216007576,2.43492,3285.6,3285.0,6.78]
[1722216007773,0.243492,3285.6,3285.1,0.09991139]
[1722216007957,2.43476,3285.8,3285.2,2.43515]
[1722216008157,2.43476,3285.8,3285.3,0.09976453]
[1722216009080,2.43488,3285.6,3285.3,0.09976453]
[1722216009379,2.43476,3285.8,3285.0,9.21524]
[1722216009542,2.43476,3285.8,3285.1,2.53514139]
[1722216009737,0.31891201,3285.7,3285.1,2.53514139]
[1722216010167,2.75370201,3285.7,3285.1,2.53514139]
[1722216010571,0.31891201,3285.7,3285.2,2.43515]
[1722216010788,0.31891201,3285.7,3285.3,2.53484941]
[1722216011168,0.31891201,3285.7,3285.4,2.435]
[1722216011518,0.31891201,3285.7,3285.6,4.86972]
[1722216011666,2.43409,3286.7,3286.0,2.43454]
[1722216011864,2.3695,3287.0,3286.0,2.43454]
[1722216012112,0.31886671,3286.2,3286.1,0.09920166]
[1722216012407,2.43432,3286.4,3286.1,0.09920166]
[1722216012791,2.43447,3286.2,3285.7,6.78]
[1722216013002,4.86879,3286.3,3286.2,0.09913071]
[1722216013313,4.86879,3286.3,3285.0,6.78]
[1722216013314,2.43523,3285.1,3285.0,6.78]
[1722216013516,2.3485,3285.4,3284.9,3.43976263]
[1722216013682,2.43498,3285.5,3285.0,0.09998239]
[1722216014021,2.43521,3285.2,3285.0,0.09998239]
[1722216014185,2.43523,3285.1,3285.0,0.09998239]
[1722216014720,4.87046,3285.1,3285.0,0.09998239]
[1722216014866,2.43523,3285.1,3285.0,0.09998239]
[1722216015619,7.34706,3285.1,3285.0,0.09998239]
[1722216015797,8.325286,3285.1,3285.0,0.09998239]
[1722216016005,9.8763214,3285.1,3285.0,0.09998239]
[1722216016306,7.3997214,3285.1,3285.0,0.09998239]
[1722216016497,7.39969725,3285.1,3285.0,0.09998239]
[1722216019710,2.43555,3284.7,3284.3,6.78]
[1722216019925,2.43555,3284.7,3284.1,3.43976263]
[1722216019926,2.43555,3284.7,3284.1,5.87573263]
[1722216020096,2.43543,3284.9,3284.2,2.43589]
[1722216020406,2.43536,3285.0,3284.3,2.53628852]
[1722216020570,3.98629701,3284.9,3284.3,2.53628852]
[1722216020771,1.55090701,3284.8,3284.4,2.43575]
[1722216021009,2.43536,3285.0,3284.5,0.10037647]
[1722216021175,1.55086202,3284.9,3284.5,0.10037647]
[1722216021574,1.55086202,3284.9,3284.5,2.53604647]
[1722216021883,1.55086202,3284.8,3284.6,2.43555]
[1722216022084,4.77247,3285.9,3284.7,2.53586527]
[1722216022085,2.3378,3285.9,3284.7,2.53586527]
[1722216022386,2.43498,3285.5,3284.7,6.88033527]
[1722216022730,1.55069398,3285.4,3284.7,6.88033527]
[1722216023018,3.98570398,3285.4,3284.8,0.95949026]
[1722216023203,3.98578398,3285.3,3284.7,6.88033527]
[1722216023378,1.55069398,3285.2,3284.9,0.10021114]
[1722216023716,1.55069398,3285.2,3285.0,0.10014014]
[1722216023879,3.98585398,3285.2,3284.7,6.78]
[1722216024078,1.55069398,3285.1,3284.7,6.78]
[1722216024280,3.98593398,3285.1,3284.8,0.10028052]
[1722216024523,1.55069398,3285.0,3284.8,0.10028052]
[1722216024689,1.55076992,3284.9,3284.8,0.10028052]
[1722216025640,2.43504,3285.4,3284.8,0.10028052]
[1722216025795,2.43518,3285.2,3284.8,0.10028052]
[1722216025995,1.55068906,3285.1,3284.8,0.10028052]
[1722216026208,2.43498,3285.5,3284.8,3.7387023]
[1722216026448,1.55065412,3285.4,3285.0,2.43525]
[1722216026648,1.55065412,3285.3,3285.0,2.43525]
[1722216026817,2.43488,3285.6,3285.1,0.10006589]
[1722216027020,1.5504567,3285.5,3285.1,0.35359748]
[1722216027343,1.5504567,3285.5,3285.3,2.3061]
[1722216027546,2.43459,3286.0,3285.4,2.53486293]
[1722216027711,0.31890996,3285.7,3285.4,2.53486293]
[1722216028042,0.31890996,3285.7,3285.4,0.09985293]
[1722216028602,1.55035391,3285.6,3285.4,0.09985293]
[1722216028803,3.98522391,3285.6,3285.4,0.09985293]
[1722216029100,0.31890996,3285.7,3285.1,7.03353159]
[1722216029101,1.55035391,3285.5,3285.1,9.46876159]
[1722216029300,2.75369996,3285.7,3285.1,9.46876159]
[1722216029497,2.75369996,3285.7,3285.2,2.43516]
[1722216029498,1.55046814,3285.6,3285.2,2.43516]
[1722216029703,1.55046814,3285.6,3285.2,3.72452916]
[1722216029940,1.55046814,3285.6,3285.4,2.43501]
[1722216030514,0.31890996,3285.7,3285.4,2.43501]
[1722216030844,1.55033844,3285.6,3285.4,2.43501]
[1722216031146,1.55033844,3285.6,3285.2,3.72447916]
[1722216031348,1.55033844,3285.6,3285.5,2.43494]
[1722216031562,0.31890996,3285.7,3285.6,2.43486]
[1722216031718,1.8692157,3285.7,3285.6,2.43486]
[1722216032951,1.8692157,3285.7,3285.3,3.51083108]
[1722216033154,1.55030574,3285.6,3285.3,3.51083108]
[1722216033853,1.55030574,3285.6,3285.3,3.51084108]
[1722216034156,1.55030574,3285.6,3285.1,9.46874159]
[1722216034356,1.55030574,3285.6,3285.1,6.78]
[1722216034543,2.43506,3285.4,3285.1,6.78]
[1722216034743,1.55030574,3285.3,3285.1,6.78]
[1722216034946,1.55030574,3285.2,3284.9,2.43533]
[1722216035247,1.55030574,3285.1,3284.9,2.43533]
[1722216035473,2.43496,3285.5,3284.9,2.43533]
[1722216035659,1.5505912,3285.4,3284.7,2.4355]
[1722216035849,1.5505912,3285.4,3284.7,4.189247]
[1722216036170,1.5505912,3285.4,3284.8,2.43544]
[1722216036547,3.9856012,3285.4,3284.8,2.43544]
[1722216036885,1.5505912,3285.3,3285.0,2.43526]
[1722216037088,0.31890996,3285.7,3285.1,2.43523]
[1722216037089,1.5505912,3285.2,3285.1,2.43523]
[1722216037248,1.55047509,3285.6,3285.2,2.43513]
[1722216037451,0.31890996,3285.7,3285.2,2.43513]
[1722216037452,1.55048729,3285.5,3285.2,2.43513]
[1722216037677,1.55048729,3285.4,3285.3,0.137847]
[1722216037881,1.55048729,3285.4,3285.3,2.572927]
[1722216038449,1.55048729,3285.6,3285.3,2.572927]
[1722216038690,1.55048729,3285.5,3285.3,2.572927]
[1722216038889,1.55048729,3285.4,3285.3,3.12381631]
[1722216039190,1.55037684,3285.6,3285.4,2.43499]
[1722216039388,1.55036111,3285.5,3285.4,2.43499]
[1722216039604,1.55036111,3285.6,3285.3,0.55088931]
[1722216039895,1.55036111,3285.5,3285.2,2.43513]
[1722216040102,1.55036111,3285.4,3285.0,5.86028]
[1722216040281,2.75369996,3285.7,3285.0,5.86028]
[1722216040282,1.55036111,3285.3,3285.0,5.86028]
[1722216040593,1.55036111,3285.2,3285.1,2.43523]
[1722216040761,1.55036111,3285.6,3285.1,2.43523]
[1722216041090,1.55036111,3285.5,3285.1,2.43523]
[1722216041254,1.55036111,3285.4,3285.2,2.43515]
[1722216041449,1.55036111,3285.3,3285.2,2.43515]
[1722216041659,0.31890996,3285.7,3285.3,2.43504]
[1722216041660,1.55039998,3285.6,3285.3,2.43504]
[1722216041863,1.55041137,3285.6,3285.3,2.43504]
[1722216042450,0.31890996,3285.7,3285.3,2.43504]
[1722216042652,1.55039135,3285.6,3285.3,2.43504]
[1722216043148,1.5503897,3285.5,3285.3,2.43504]
[1722216043347,1.5503897,3285.4,3285.3,2.43504]
[1722216043553,1.5503897,3285.6,3285.2,0.829538]
[1722216043810,1.5503897,3285.5,3285.2,2.43516]
[1722216043956,1.5503897,3285.4,3285.3,2.43508]
[1722216044658,1.5503897,3285.6,3285.3,2.43508]
[1722216044979,1.5503897,3285.5,3285.3,2.43508]
[1722216045185,0.31890996,3285.7,3285.3,2.43508]
[1722216045186,1.5503897,3285.4,3285.3,2.43508]
[1722216045383,1.55042532,3285.6,3285.4,2.43501]
[1722216045583,1.55042398,3285.6,3285.4,2.43501]
[1722216046258,1.55042398,3285.6,3285.3,2.43507]
[1722216047359,1.55042398,3285.6,3285.3,2.43502]
[1722216047559,1.55042398,3285.6,3285.1,5.0032]
[1722216047793,1.55042398,3285.6,3285.1,5.50352]
[1722216048004,1.55042398,3285.6,3285.3,2.43504]
[1722216048799,1.55042398,3285.6,3285.1,5.50349]
[1722216049008,1.55042398,3285.6,3285.1,2.568]
[1722216049203,3.98529398,3285.6,3285.1,2.568]
[1722216049527,0.31890996,3285.7,3285.1,5.00321]
[1722216049528,1.55042398,3285.5,3285.1,5.00321]
[1722216049820,1.55042398,3285.4,3285.1,5.00321]
[1722216050027,1.55042398,3285.3,3285.1,2.568]
[1722216050336,0.31890996,3285.7,3285.2,2.43516]
[1722216050527,1.55050752,3285.6,3285.2,2.43516]
[1722216050987,2.75369996,3285.7,3285.2,2.43516]
[1722216051329,1.55050582,3285.6,3285.2,2.43516]
[1722216052133,1.55050582,3285.6,3285.3,0.13790713]
[1722216054805,1.55050582,3285.6,3285.4,2.43501]
[1722216055000,1.55050582,3285.6,3285.5,0.13775959]
[1722216055188,1.55050582,3285.6,3285.5,2.57269959]
[1722216055622,1.55050582,3285.6,3285.5,0.13775959]
[1722216056110,1.55050582,3285.6,3285.5,7.83291655]
[1722216056310,1.57632501,3286.6,3286.3,2.43434]
[1722216056508,2.43383,3287.0,3286.4,2.43427]
[1722216056509,1.54998905,3286.5,3286.4,2.43427]
[1722216056718,1.54998905,3286.9,3286.4,2.57133824]
[1722216057031,0.31886309,3286.7,3286.6,2.43407]
[1722216057328,1.86885214,3286.7,3286.6,5.13899404]
[1722216058137,1.54998905,3286.7,3286.6,5.83789763]
[1722216058321,2.43353,3287.4,3286.6,5.83789763]
[1722216058504,0.31884828,3287.1,3286.8,2.43397]
[1722216058710,1.54972311,3287.0,3286.8,2.43397]
[1722216059014,1.54972311,3287.0,3286.9,2.57046965]
[1722216059416,1.54972311,3287.0,3286.9,0.13656965]
[1722216059616,1.54972311,3287.0,3286.6,5.00207]
[1722216059927,1.54972311,3287.0,3286.7,0.1366927]
[1722216060131,4.17042025,3287.0,3286.7,0.1366927]
[1722216060336,1.54972311,3286.9,3286.5,2.4342]
[1722216060496,1.54972311,3286.9,3286.8,0.13662061]
[1722216060693,1.54972311,3286.9,3286.5,2.4342]
[1722216060899,1.54972311,3286.9,3286.8,0.13661412]
[1722216061133,1.54972311,3286.9,3286.2,2.568]
[1722216061332,1.54972311,3286.9,3286.8,0.13661412]
[1722216061333,2.4339,3286.9,3286.8,0.13661412]
[1722216061518,2.4339,3286.9,3286.2,3.986894]
[1722216061519,3.98383889,3286.9,3286.4,2.43427]
[1722216061831,2.75264828,3287.1,3286.4,2.43427]
[1722216061994,1.54989111,3287.0,3286.5,0.136858]
[1722216062637,1.54989111,3287.0,3286.6,5.00205]
[1722216062824,1.54989111,3287.0,3286.7,2.57075194]
[1722216063135,1.54989111,3287.0,3286.7,0.13672194]
[1722216063737,2.43397,3286.8,3286.7,0.13672194]